bitfinex/quotes_BTCUSD_20240927
["timestamp","ask_amount","ask_price","bid_price","bid_amount"]
[1727422031386,0.078328,65653.0,65652.0,0.56578267]
[1727422031612,0.078328,65653.0,65652.0,0.43013695]
[1727422031842,0.078328,65653.0,65652.0,0.56578267]
[1727422032322,0.078328,65653.0,65652.0,0.43013695]
[1727422033083,0.169028,65653.0,65652.0,0.4921139]
[1727422033295,0.625978,65653.0,65652.0,0.51473109]
[1727422033545,0.62911015,65653.0,65652.0,0.51473109]
[1727422033766,0.63375354,65653.0,65652.0,0.51473109]
[1727422034065,0.77560042,65653.0,65652.0,0.016654]
[1727422034278,0.77560042,65653.0,65649.0,0.06786953]
[1727422034279,0.1727,65652.0,65649.0,0.152324]
[1727422034515,0.1727,65650.0,65647.0,0.304659]
[1727422034745,0.1727,65648.0,65646.0,0.152331]
[1727422035005,0.63270016,65647.0,65646.0,0.152331]
[1727422035252,0.62965,65647.0,65646.0,0.152331]
[1727422035722,0.1796,65646.0,65644.0,0.152334]
[1727422035979,0.0999,65644.0,65641.0,0.02309053]
[1727422036217,0.0999,65644.0,65643.0,0.152339]
[1727422036437,0.404516,65644.0,65643.0,0.152339]
[1727422036713,0.483716,65644.0,65643.0,0.152339]
[1727422037185,0.48684821,65644.0,65643.0,0.152339]
[1727422037899,0.49084821,65644.0,65643.0,0.152339]
[1727422038123,0.48684821,65644.0,65643.0,0.152339]
[1727422038373,0.48684821,65644.0,65641.0,0.02309053]
[1727422038608,0.076,65643.0,65642.0,0.152341]
[1727422038824,0.38366616,65643.0,65642.0,0.152341]
[1727422039049,0.380616,65643.0,65642.0,0.152341]
[1727422039273,0.3881813,65643.0,65642.0,0.152341]
[1727422039999,0.0767,65642.0,65641.0,0.02309053]
[1727422040218,0.49628904,65642.0,65641.0,0.02309053]
[1727422040664,0.0962,65640.0,65635.0,0.1]
[1727422040670,0.0767,65639.0,65635.0,0.1]
[1727422040895,0.0767,65639.0,65630.0,0.27380966]
[1727422040896,0.14184688,65636.0,65631.0,0.304733]
[1727422041162,0.48286616,65635.0,65634.0,0.15236]
[1727422041422,0.48288111,65635.0,65634.0,0.15236]
[1727422041901,0.0802,65634.0,65629.0,0.304742]
[1727422042147,0.40268111,65635.0,65631.0,0.152365]
[1727422042148,0.14184688,65632.0,65631.0,0.152365]
[1727422042391,0.53141304,65632.0,65631.0,0.152365]
[1727422042614,0.52836288,65632.0,65631.0,0.152365]
[1727422043124,0.386516,65632.0,65631.0,0.152365]
[1727422044562,0.38958057,65632.0,65631.0,0.152365]
[1727422045298,0.39558057,65632.0,65631.0,0.153365]
[1727422045531,0.40058057,65632.0,65631.0,0.153365]
[1727422046005,0.39558057,65632.0,65631.0,0.153365]
[1727422046235,0.40058057,65632.0,65631.0,0.153365]
[1727422049321,0.49588057,65632.0,65631.0,0.153365]
[1727422049502,0.49088057,65632.0,65631.0,0.153365]
[1727422049767,0.49588057,65632.0,65631.0,0.153365]
[1727422051078,0.49588057,65632.0,65631.0,0.155019]
[1727422051542,0.48988057,65632.0,65631.0,0.154019]
[1727422051759,0.49588057,65632.0,65631.0,0.155019]
[1727422052222,0.49088057,65632.0,65631.0,0.155019]
[1727422052659,0.48988057,65632.0,65631.0,0.154019]
[1727422052876,0.49488057,65632.0,65631.0,0.155019]
[1727422053089,0.48988057,65632.0,65631.0,0.155019]
[1727422054413,0.49388057,65632.0,65631.0,0.155019]
[1727422057238,0.49818012,65632.0,65631.0,0.155019]
[1727422072325,0.49791691,65632.0,65631.0,0.155019]
[1727422075639,0.49791691,65632.0,65631.0,0.20033701]
[1727422076126,0.49055279,65632.0,65631.0,0.20033701]
[1727422076398,0.49055279,65632.0,65631.0,0.155019]
[1727422076656,0.49784797,65632.0,65631.0,0.155019]
[1727422077351,0.49784797,65632.0,65631.0,0.20044961]
[1727422077590,0.49784797,65632.0,65631.0,0.22299602]
[1727422077794,0.49055279,65632.0,65631.0,0.22299602]
[1727422078267,0.49783497,65632.0,65631.0,0.22299602]
[1727422078508,0.49783497,65632.0,65631.0,0.24565503]
[1727422078746,0.49783497,65632.0,65631.0,0.24600268]
[1727422079505,0.49783497,65632.0,65631.0,0.2687486]
[1727422080459,0.59068033,65632.0,65631.0,0.155019]
[1727422080704,0.59068033,65632.0,65631.0,0.26884986]
[1727422081370,0.59068033,65632.0,65631.0,0.155019]
[1727422082343,0.49783497,65632.0,65631.0,0.155019]
[1727422082566,0.40253497,65632.0,65631.0,0.155019]
[1727422085432,0.49538033,65632.0,65631.0,0.155019]
[1727422087490,0.49538033,65632.0,65631.0,0.29170492]
[1727422090719,0.40253497,65632.0,65631.0,0.29170492]
[1727422091579,0.39525279,65632.0,65631.0,0.29170492]
[1727422092211,0.313616,65632.0,65631.0,0.32286199]
[1727422092646,0.313616,65632.0,65631.0,0.49725819]
[1727422093062,0.313616,65632.0,65631.0,0.48470694]
[1727422093486,0.309616,65632.0,65631.0,0.48470694]
[1727422093694,0.304616,65632.0,65631.0,0.58170694]
[1727422093905,0.304616,65632.0,65631.0,0.63257936]
[1727422094112,0.304616,65632.0,65631.0,0.63557936]
[1727422094602,0.304616,65632.0,65631.0,0.72608538]
[1727422094782,0.304616,65632.0,65631.0,0.73008538]
[1727422095220,0.304616,65632.0,65631.0,0.58170694]
[1727422095634,0.306616,65632.0,65631.0,0.59670694]
[1727422095849,0.305616,65632.0,65631.0,0.58970694]
[1727422097127,0.305616,65632.0,65631.0,0.58770694]
[1727422097819,0.000827,65643.0,65642.0,0.252341]
[1727422098035,0.000827,65643.0,65642.0,0.6804466]
[1727422098508,0.000827,65643.0,65642.0,0.47912894]
[1727422098717,0.000827,65643.0,65642.0,0.77463124]
[1727422099156,0.001827,65643.0,65642.0,0.78563124]
[1727422099411,0.001827,65643.0,65642.0,0.58431358]
[1727422099647,0.000827,65645.0,65644.0,0.275336]
[1727422099864,0.000827,65645.0,65644.0,0.43366999]
[1727422100091,0.000827,65645.0,65644.0,0.43062394]
[1727422100960,0.000827,65645.0,65644.0,0.43262394]
[1727422101882,0.000827,65645.0,65644.0,0.44162394]
[1727422102386,0.000827,65645.0,65644.0,0.57554362]
[1727422102387,0.00056332,65645.0,65644.0,0.57554362]
[1727422102601,0.00056332,65645.0,65644.0,0.44762394]
[1727422109595,0.00056332,65645.0,65644.0,0.58329704]
[1727422109826,0.22854879,65655.0,65652.0,0.152318]
[1727422110108,0.22854879,65655.0,65652.0,0.49805434]
[1727422110325,0.457778,65653.0,65652.0,0.40760594]
[1727422111173,0.457778,65653.0,65652.0,0.50005434]
[1727422111418,0.457778,65653.0,65652.0,0.40960594]
[1727422111885,0.457778,65653.0,65652.0,0.55098438]
[1727422112116,0.458778,65653.0,65652.0,0.64143278]
[1727422112585,0.45851405,65653.0,65652.0,0.55098438]
[1727422113384,0.45851405,65653.0,65652.0,0.40960594]
[1727422113587,0.45851405,65653.0,65652.0,0.47741005]
[1727422113863,0.63041405,65653.0,65652.0,0.40960594]
[1727422114809,0.63041405,65653.0,65652.0,0.40760594]
[1727422115233,0.63141405,65653.0,65652.0,0.40760594]
[1727422115649,0.63741405,65653.0,65652.0,0.40860594]
[1727422115856,0.62941405,65653.0,65652.0,0.40760594]
[1727422116294,0.63441405,65653.0,65652.0,0.40760594]
[1727422116948,0.63141405,65653.0,65652.0,0.40760594]
[1727422117554,0.63041405,65653.0,65652.0,0.45281886]
[1727422117787,0.63041405,65653.0,65652.0,0.45381886]
[1727422117992,0.63041405,65653.0,65652.0,0.40860594]
[1727422118403,0.63041405,65653.0,65652.0,0.40760594]
[1727422118748,0.63041405,65653.0,65652.0,0.40860594]
[1727422119593,0.62941405,65653.0,65652.0,0.40860594]
[1727422120005,0.63141405,65653.0,65652.0,0.40860594]
[1727422122170,0.63141405,65653.0,65652.0,0.41025994]
[1727422122367,0.63115045,65653.0,65652.0,0.41025994]
[1727422122811,0.63115045,65653.0,65652.0,0.154972]
[1727422123650,0.62915045,65653.0,65652.0,0.153972]
[1727422123871,0.63115045,65653.0,65652.0,0.154972]
[1727422124504,0.63815045,65653.0,65652.0,0.154972]
[1727422124722,0.64015045,65653.0,65652.0,0.155972]
[1727422125230,0.64015045,65653.0,65652.0,0.154972]
[1727422125231,0.63815045,65653.0,65652.0,0.154972]
[1727422125402,0.63815045,65653.0,65652.0,0.31025994]
[1727422125653,0.64015045,65653.0,65652.0,0.31025994]
[1727422125869,0.63115045,65653.0,65652.0,0.30925994]
[1727422126310,0.64315045,65653.0,65652.0,0.31025994]
[1727422126576,0.64315045,65653.0,65652.0,0.30925994]
[1727422126804,0.64115045,65653.0,65652.0,0.30925994]
[1727422127029,0.64315045,65653.0,65652.0,0.31514391]
[1727422127255,0.64515045,65653.0,65652.0,0.31514391]
[1727422127712,0.64315045,65653.0,65652.0,0.31514391]
[1727422127929,0.55095045,65653.0,65652.0,0.41514391]
[1727422128171,0.47125045,65653.0,65652.0,0.41514391]
[1727422128403,0.47125045,65653.0,65652.0,0.52829777]
[1727422129335,0.45725045,65653.0,65652.0,0.52826121]
[1727422129830,0.45825045,65653.0,65652.0,0.52826121]
[1727422130049,0.45725045,65653.0,65652.0,0.52826121]
[1727422130261,0.45825045,65653.0,65652.0,0.42114391]
[1727422130494,0.45825045,65653.0,65652.0,0.42214391]
[1727422130727,0.45825045,65653.0,65652.0,0.53527717]
[1727422130953,0.45825045,65653.0,65652.0,0.5342777]
[1727422131400,0.45825045,65653.0,65652.0,0.54230943]
[1727422131638,0.63865045,65653.0,65652.0,0.49705113]
[1727422131851,0.63865045,65653.0,65652.0,0.42914391]
[1727422132284,0.63865045,65653.0,65652.0,0.42325994]
[1727422132498,0.63712313,65653.0,65652.0,0.41725994]
[1727422133102,0.63912313,65653.0,65652.0,0.41725994]
[1727422133346,0.63712313,65653.0,65652.0,0.40925994]
[1727422133581,0.64612313,65653.0,65652.0,0.41025994]
[1727422134055,0.66183925,65653.0,65652.0,0.154972]
[1727422134303,0.66183925,65653.0,65652.0,0.002654]
[1727422134554,0.66483925,65653.0,65652.0,0.002654]
[1727422134808,0.66566625,65653.0,65652.0,0.154972]
[1727422135272,0.64995013,65653.0,65652.0,0.154972]
[1727422137450,0.64995013,65653.0,65652.0,0.20030199]
[1727422137665,0.64995013,65653.0,65652.0,0.154972]
[1727422138331,0.64995013,65653.0,65652.0,0.20030199]
[1727422138983,0.64995013,65653.0,65652.0,0.22296327]
[1727422141333,0.66564669,65653.0,65652.0,0.154972]
[1727422142260,0.64995013,65653.0,65652.0,0.154972]
[1727422142490,0.64915921,65653.0,65652.0,0.154972]
[1727422143473,0.64915921,65653.0,65652.0,0.24563198]
[1727422143718,0.64915921,65653.0,65652.0,0.26829079]
[1727422143964,0.64919921,65653.0,65652.0,0.26836729]
[1727422144454,0.64919921,65653.0,65652.0,0.24569732]
[1727422144700,0.64919921,65653.0,65652.0,0.154972]
[1727422144701,0.64419921,65653.0,65652.0,0.154972]
[1727422145689,0.64419921,65653.0,65652.0,0.26836729]
[1727422146153,0.64419921,65653.0,65652.0,0.154972]
[1727422147062,0.64419921,65653.0,65652.0,0.26836429]
[1727422147789,0.64419921,65653.0,65652.0,0.22299466]
[1727422148469,0.64419921,65653.0,65652.0,0.24564975]
[1727422149417,0.64419921,65653.0,65652.0,0.154972]
[1727422149688,0.64419921,65653.0,65652.0,0.24564975]
[1727422150151,0.64419921,65653.0,65652.0,0.154972]
[1727422150393,0.64419921,65653.0,65652.0,0.24563176]
[1727422150630,0.64419921,65653.0,65652.0,0.154972]
[1727422152064,0.64419921,65653.0,65652.0,0.16087906]
[1727422152561,0.64367101,65653.0,65652.0,0.16087906]
[1727422152816,0.64367101,65653.0,65652.0,0.154972]
[1727422153054,0.64367101,65653.0,65652.0,0.24559405]
[1727422153532,0.64367101,65653.0,65652.0,0.154972]
[1727422153766,0.64367101,65653.0,65652.0,0.24559405]
[1727422153996,0.64367101,65653.0,65652.0,0.154972]
[1727422154455,0.64367101,65653.0,65652.0,0.24559405]
[1727422156562,0.64367101,65653.0,65652.0,0.154972]
[1727422157025,0.64367101,65653.0,65652.0,0.22296155]
[1727422157506,0.64367101,65653.0,65652.0,0.154972]
[1727422158218,0.64367101,65653.0,65652.0,0.22297266]
[1727422158507,0.64367101,65653.0,65652.0,0.07065466]
[1727422158757,0.64367101,65653.0,65652.0,0.002654]
[1727422159672,0.64367101,65653.0,65652.0,0.20032722]
[1727422160164,0.64367101,65653.0,65652.0,0.154972]
[1727422160625,0.64367101,65653.0,65652.0,0.20034148]
[1727422160852,0.64367101,65653.0,65652.0,0.154972]
[1727422162642,0.64314348,65653.0,65652.0,0.154972]
[1727422162861,0.64314348,65653.0,65652.0,0.20036829]
[1727422163089,0.64314348,65653.0,65652.0,0.154972]
[1727422163517,0.64314348,65653.0,65652.0,0.22302782]
[1727422164009,0.64314348,65653.0,65652.0,0.154972]
[1727422164257,0.64314348,65653.0,65652.0,0.2230702]
[1727422165357,0.64314348,65653.0,65652.0,0.154972]
[1727422166506,0.64314348,65653.0,65652.0,0.002654]
[1727422166763,0.78452192,65653.0,65652.0,0.002654]
[1727422167442,0.93683692,65653.0,65652.0,0.002654]
[1727422167894,0.93883692,65653.0,65652.0,0.002654]
[1727422168116,0.93683692,65653.0,65652.0,0.002654]
[1727422168769,0.93383692,65653.0,65652.0,0.002654]
[1727422169205,0.94283692,65653.0,65652.0,0.003654]
[1727422169428,0.79245848,65653.0,65652.0,0.002654]
[1727422169647,0.94083692,65653.0,65652.0,0.002654]
[1727422169871,0.94083692,65653.0,65652.0,0.003654]
[1727422170099,0.93583692,65653.0,65652.0,0.002654]
[1727422170322,0.94983692,65653.0,65652.0,0.003654]
[1727422172587,0.94906223,65653.0,65652.0,0.003654]
[1727422179512,0.94906223,65653.0,65652.0,0.155972]
[1727422179513,0.65336879,65653.0,65652.0,0.155972]
[1727422180426,0.65336879,65653.0,65652.0,0.003654]
[1727422181092,0.94706223,65653.0,65652.0,0.003654]
[1727422189427,0.152318,65652.0,65648.0,0.152326]
[1727422189664,0.45215195,65651.0,65648.0,0.152326]
[1727422189890,0.00305016,65650.0,65648.0,0.152326]
[1727422190116,0.44910179,65649.0,65648.0,0.152326]
[1727422190565,0.44910179,65649.0,65648.0,0.153326]
[1727422191275,0.44910179,65649.0,65646.0,0.15233]
[1727422191488,0.47010179,65649.0,65648.0,0.002]
[1727422192138,0.46110179,65649.0,65648.0,0.001]
[1727422192814,0.46110179,65649.0,65648.0,0.153327]
[1727422193259,0.46110179,65649.0,65648.0,0.154983]
[1727422193475,0.47110179,65649.0,65648.0,0.002656]
[1727422194132,0.46110179,65649.0,65648.0,0.002656]
[1727422194354,0.47110179,65649.0,65648.0,0.003656]
[1727422194583,0.54850179,65649.0,65648.0,0.003656]
[1727422194877,0.68988023,65649.0,65648.0,0.003656]
[1727422198803,0.68988023,65649.0,65648.0,0.04905593]
[1727422199025,0.54850179,65649.0,65648.0,0.20138293]
[1727422199681,0.54850179,65649.0,65648.0,0.155983]
[1727422199933,0.54850179,65649.0,65648.0,0.152327]
[1727422200159,0.54850179,65649.0,65647.0,0.0680999]
[1727422200160,0.68988023,65649.0,65647.0,0.0680999]
[1727422200395,0.68988023,65649.0,65643.0,0.04544867]
[1727422200396,0.0751,65646.0,65643.0,0.04544867]
[1727422200613,0.0751,65643.0,65642.0,0.04544867]
[1727422200834,0.0751,65643.0,65641.0,0.152343]
[1727422200835,0.52420179,65643.0,65641.0,0.19779167]
[1727422201060,0.52420179,65643.0,65641.0,0.04544867]
[1727422201304,0.52420179,65643.0,65642.0,0.152341]
[1727422201985,0.52420179,65643.0,65642.0,0.2204409]
[1727422202240,0.52420179,65643.0,65642.0,0.30762894]
[1727422202241,0.44910179,65643.0,65642.0,0.30762894]
[1727422202729,0.44858946,65643.0,65642.0,0.30762894]
[1727422203181,0.44858946,65643.0,65642.0,0.31369096]
[1727422203702,0.44858946,65643.0,65642.0,0.41369096]
[1727422203982,0.47358946,65643.0,65642.0,0.41369096]
[1727422204216,0.45958946,65643.0,65642.0,0.41369096]
[1727422204447,0.44858946,65643.0,65642.0,0.41369096]
[1727422204692,0.45458946,65643.0,65642.0,0.41369096]
[1727422204919,0.44858946,65643.0,65642.0,0.41369096]
[1727422205400,0.45158946,65643.0,65642.0,0.41369096]
[1727422206325,0.45158946,65643.0,65642.0,0.41534696]
[1727422206851,0.44958946,65643.0,65642.0,0.41534696]
[1727422207079,0.45058946,65643.0,65642.0,0.41534696]
[1727422207300,0.44958946,65643.0,65642.0,0.41534696]
[1727422208001,0.45058946,65643.0,65642.0,0.41534696]
[1727422209857,0.44958946,65643.0,65642.0,0.616252]
[1727422210088,0.44958946,65643.0,65642.0,0.624252]
[1727422210315,0.44958946,65643.0,65642.0,0.625252]
[1727422210316,0.45058946,65643.0,65642.0,0.625252]
[1727422210593,0.44958946,65643.0,65642.0,0.617252]
[1727422210816,0.44958946,65643.0,65642.0,0.41934696]
[1727422211051,0.44958946,65643.0,65642.0,0.41834696]
[1727422211052,0.44858946,65643.0,65642.0,0.41834696]
[1727422211274,0.44858946,65643.0,65642.0,0.41634696]
[1727422211490,0.44858946,65643.0,65642.0,0.41534696]
[1727422211742,0.44858946,65643.0,65642.0,0.41934696]
[1727422211965,0.44858946,65643.0,65642.0,0.42034696]
[1727422213581,0.44858946,65643.0,65642.0,0.5562715]
[1727422213803,0.44858946,65643.0,65642.0,0.42034696]
[1727422215212,0.44858946,65643.0,65642.0,0.31428494]
[1727422215898,0.0797,65648.0,65647.0,0.152329]
[1727422216135,0.0797,65648.0,65647.0,0.19763002]
[1727422216877,0.0797,65648.0,65647.0,0.152329]
[1727422217101,0.0907,65648.0,65647.0,0.152329]
[1727422217788,0.0987,65648.0,65647.0,0.153329]
[1727422218049,0.0987,65648.0,65647.0,0.001]
[1727422218050,0.1923,65648.0,65647.0,0.001]
[1727422218286,0.34767716,65648.0,65647.0,0.001]
[1727422218510,0.344627,65648.0,65647.0,0.001]
[1727422218728,0.342627,65648.0,65647.0,0.001]
[1727422219200,0.1713,65648.0,65647.0,0.152329]
[1727422219442,0.1713,65648.0,65647.0,0.153329]
[1727422219443,0.1793,65648.0,65647.0,0.153329]
[1727422219664,0.1903,65648.0,65647.0,0.153329]
[1727422219888,0.1823,65648.0,65647.0,0.152329]
[1727422220116,0.0806,65647.0,65643.0,0.04530102]
[1727422220337,0.29371544,65644.0,65642.0,0.001656]
[1727422220561,0.17415016,65643.0,65642.0,0.001656]
[1727422220847,0.477982,65648.0,65647.0,28.5321344]
[1727422221075,0.63326994,65648.0,65647.0,28.5321344]
[1727422221295,1.23163838,65648.0,65647.0,28.5321344]
[1727422221525,1.22363838,65648.0,65647.0,28.5321344]
[1727422222437,1.21263838,65648.0,65647.0,28.5321344]
[1727422222683,1.21210835,65648.0,65647.0,28.5321344]
[1727422222913,1.22610835,65648.0,65647.0,28.5331344]
[1727422223140,1.09872991,65648.0,65647.0,28.5331344]
[1727422223398,1.22610835,65648.0,65647.0,28.5321344]
[1727422223839,1.41370835,65648.0,65647.0,28.5331344]
[1727422224060,1.43670835,65648.0,65647.0,28.5331344]
[1727422224281,1.42270835,65648.0,65647.0,28.5321344]
[1727422224494,1.43670835,65648.0,65647.0,28.5331344]
[1727422225173,1.43670835,65648.0,65647.0,27.69896286]
[1727422225394,1.53670835,65648.0,65647.0,27.38713329]
[1727422225613,0.39742552,65648.0,65647.0,27.38713329]
[1727422225832,0.86840752,65648.0,65647.0,27.38713329]
[1727422226339,1.46677596,65648.0,65647.0,27.38713329]
[1727422227477,1.46677596,65648.0,65647.0,27.23225032]
[1727422228830,1.46677596,65648.0,65647.0,27.14677988]
[1727422229051,1.46677596,65648.0,65647.0,27.08963496]
[1727422230256,1.62747596,65648.0,65647.0,27.08963496]
[1727422230483,1.46760396,65648.0,65647.0,26.92170648]
[1727422232380,1.46760396,65648.0,65647.0,26.72078776]
[1727422232875,1.62399202,65648.0,65647.0,26.72078776]
[1727422233568,1.78469202,65648.0,65647.0,25.53881397]
[1727422233862,1.68879202,65648.0,65647.0,25.43951397]
[1727422234312,3.97016466,65648.0,65647.0,25.43851397]
[1727422234532,2.2637317,65648.0,65647.0,25.43851397]
[1727422234755,2.38485014,65648.0,65647.0,25.43851397]
[1727422234974,2.84183214,65648.0,65647.0,25.43851397]
[1727422235428,3.31282214,65648.0,65647.0,25.43851397]
[1727422235648,1.69456014,65648.0,65647.0,25.43851397]
[1727422235867,1.72256014,65648.0,65647.0,25.43851397]
[1727422236370,1.70856014,65648.0,65647.0,25.43851397]
[1727422236567,1.84556014,65648.0,65647.0,25.43851397]
[1727422236786,1.79907208,65648.0,65647.0,25.43851397]
[1727422237703,1.87497208,65648.0,65647.0,25.43851397]
[1727422239707,1.87497208,65648.0,65647.0,25.24051002]
[1727422240145,1.89886023,65648.0,65647.0,25.24051002]
[1727422240381,2.05524829,65648.0,65647.0,24.71106852]
[1727422242430,1.62916929,65648.0,65647.0,24.71106852]
[1727422242649,4.48216129,65648.0,65647.0,24.71106852]
[1727422242914,4.46816129,65648.0,65647.0,24.71106852]
[1727422243148,4.32990829,65648.0,65647.0,24.71206852]
[1727422243582,4.10338429,65648.0,65647.0,24.71372452]
[1727422243795,4.11821229,65648.0,65647.0,24.71372452]
[1727422244504,4.10421229,65648.0,65647.0,24.71272452]
[1727422244727,4.11821229,65648.0,65647.0,24.71372452]
[1727422244952,4.10421229,65648.0,65647.0,24.71372452]
[1727422245185,4.11821229,65648.0,65647.0,24.71372452]
[1727422245852,4.09432414,65648.0,65647.0,24.71372452]
[1727422246301,3.31942914,65648.0,65647.0,24.71372452]
[1727422246563,2.69864416,65648.0,65647.0,24.71372452]
[1727422246996,1.30834264,65648.0,65647.0,24.71372452]
[1727422247222,1.3023261,65648.0,65647.0,24.71372452]
[1727422248563,1.3253261,65648.0,65647.0,24.71372452]
[1727422249026,1.34921272,65648.0,65647.0,24.71372452]
[1727422249444,1.3253261,65648.0,65647.0,24.71372452]
[1727422249661,1.48171416,65648.0,65647.0,24.71372452]
[1727422250447,1.48171416,65648.0,65647.0,24.57553242]
[1727422250448,1.61132552,65648.0,65647.0,24.57553242]
[1727422250864,4.19682752,65648.0,65647.0,24.57553242]
[1727422251266,4.22071596,65648.0,65647.0,24.57553242]
[1727422251461,4.26607344,65648.0,65647.0,24.57553242]
[1727422251876,4.26602359,65648.0,65647.0,24.57553242]
[1727422252752,4.10937049,65648.0,65647.0,24.57553242]
[1727422252990,3.72289549,65648.0,65647.0,24.57553242]
[1727422253235,3.72289549,65648.0,65647.0,24.50568507]
[1727422253709,3.81839549,65648.0,65647.0,24.50568507]
[1727422255714,3.79450705,65648.0,65647.0,24.50568507]
[1727422255924,3.77923805,65648.0,65647.0,24.50568507]
[1727422256851,3.93562611,65648.0,65647.0,24.50568507]
[1727422258648,2.20937811,65648.0,65647.0,24.50568507]
[1727422259097,2.2332667,65648.0,65647.0,24.50568507]
[1727422261019,2.2332667,65648.0,65647.0,24.41315296]
[1727422262697,2.23300203,65648.0,65647.0,24.41315296]
[1727422263382,2.07661397,65648.0,65647.0,24.41315296]
[1727422265685,2.05272538,65648.0,65647.0,24.41315296]
[1727422265910,2.05276538,65648.0,65647.0,24.41315296]
[1727422267065,1.49975538,65648.0,65647.0,24.41315296]
[1727422267539,2.88015638,65648.0,65647.0,24.41315296]
[1727422267754,3.03654444,65648.0,65647.0,24.41315296]
[1727422268877,2.89504962,65648.0,65647.0,24.41315296]
[1727422269105,3.03654444,65648.0,65647.0,24.41315296]
[1727422270307,3.06043445,65648.0,65647.0,24.41315296]
[1727422270791,3.06043445,65648.0,65647.0,23.65733567]
[1727422271018,3.06043445,65648.0,65647.0,23.62443151]
[1727422271257,3.21863445,65648.0,65647.0,23.62443151]
[1727422271497,3.21863445,65648.0,65647.0,23.40548908]
[1727422271731,3.21863445,65648.0,65647.0,22.9294213]
[1727422271974,3.21863445,65648.0,65647.0,22.62478857]
[1727422272201,3.21863445,65648.0,65647.0,22.49500483]
[1727422273101,3.21863445,65648.0,65647.0,22.46446783]
[1727422273318,3.20463445,65648.0,65647.0,22.43293083]
[1727422273521,3.19063445,65648.0,65647.0,21.90646053]
[1727422273739,3.20463445,65648.0,65647.0,21.90646053]
[1727422273971,3.20463445,65648.0,65647.0,21.87592253]
[1727422274199,3.20463445,65648.0,65647.0,21.81484653]
[1727422274426,3.20463445,65648.0,65647.0,21.75377053]
[1727422274640,3.20463445,65648.0,65647.0,21.56192486]
[1727422274641,3.21863445,65648.0,65647.0,21.56192486]
[1727422274855,3.21863445,65648.0,65647.0,21.48455487]
[1727422275102,3.21863445,65648.0,65647.0,21.45401687]
[1727422275329,3.21863445,65648.0,65647.0,21.39294087]
[1727422275538,3.19474444,65648.0,65647.0,21.22918555]
[1727422275977,3.19474444,65648.0,65647.0,21.19864755]
[1727422276453,3.19474444,65648.0,65647.0,20.73889972]
[1727422277143,3.19474444,65648.0,65647.0,20.70836172]
[1727422277367,3.19474444,65648.0,65647.0,20.64728572]
[1727422277587,3.19474444,65648.0,65647.0,20.61674772]
[1727422277809,1.81434344,65648.0,65647.0,20.58620972]
[1727422278280,6.03984344,65648.0,65647.0,20.55567172]
[1727422278492,6.03984344,65648.0,65647.0,20.43351972]
[1727422278977,6.06373597,65648.0,65647.0,20.43351972]
[1727422279207,6.03984344,65648.0,65647.0,20.40298172]
[1727422279422,6.03984344,65648.0,65647.0,20.31136772]
[1727422279866,6.03984344,65648.0,65647.0,15.96093532]
[1727422280106,6.03984344,65648.0,65647.0,15.93039732]
[1727422282009,6.06373595,65648.0,65647.0,15.86932132]
[1727422282451,6.06373595,65648.0,65647.0,15.77770732]
[1727422282922,5.90553595,65648.0,65647.0,15.77770732]
[1727422283149,5.62279041,65648.0,65647.0,15.77770732]
[1727422283629,5.45829559,65648.0,65647.0,15.77770732]
[1727422283847,5.35829559,65648.0,65647.0,15.77770732]
[1727422284296,5.34429559,65648.0,65647.0,15.77770732]
[1727422284750,1.11879559,65648.0,65647.0,15.77770732]
[1727422284970,1.39982021,65648.0,65647.0,15.77770732]
[1727422285191,1.38582021,65648.0,65647.0,15.77770732]
[1727422285425,1.37182021,65648.0,65647.0,15.77770732]
[1727422285930,1.3479277,65648.0,65647.0,15.77770732]
[1727422286635,1.3759277,65648.0,65647.0,15.77770732]
[1727422286871,1.3619277,65648.0,65647.0,15.77770732]
[1727422287151,1.3479277,65648.0,65647.0,15.77770732]
[1727422287343,1.3759277,65648.0,65647.0,15.77770732]
[1727422287580,1.3619277,65648.0,65647.0,15.77770732]
[1727422287826,1.3479277,65648.0,65647.0,15.77770732]
[1727422288086,1.3619277,65648.0,65647.0,15.77770732]
[1727422288534,1.3759277,65648.0,65647.0,15.77770732]
[1727422289112,1.3998179,65648.0,65647.0,15.77770732]
[1727422289341,1.3858179,65648.0,65647.0,15.77770732]
[1727422289825,1.43119735,65648.0,65647.0,15.77770732]
[1727422290055,1.3998179,65648.0,65647.0,15.77770732]
[1727422290273,1.41719801,65648.0,65647.0,15.77770732]
[1727422290492,1.43119801,65648.0,65647.0,15.77770732]
[1727422290737,1.44519801,65648.0,65647.0,15.77770732]
[1727422290959,1.43119801,65648.0,65647.0,15.77770732]
[1727422291394,1.44519801,65648.0,65647.0,15.77770732]
[1727422292041,1.25579328,65648.0,65647.0,15.77770732]
[1727422292276,1.25579328,65648.0,65647.0,16.03960732]
[1727422292735,1.25552834,65648.0,65647.0,16.03960732]
[1727422295748,1.23163814,65648.0,65647.0,16.03960732]
[1727422298049,1.91983314,65648.0,65647.0,16.03960732]
[1727422298523,2.0762212,65648.0,65647.0,16.03960732]
[1727422298742,2.0762212,65648.0,65647.0,15.96460732]
[1727422298975,2.24160498,65648.0,65647.0,15.96460732]
[1727422299186,2.24160498,65648.0,65647.0,15.77770732]
[1727422299406,2.28696292,65648.0,65647.0,15.77770732]
[1727422300048,2.26307396,65648.0,65647.0,15.77770732]
[1727422300706,1.88250208,65648.0,65647.0,15.77770732]
[1727422300899,1.27699608,65648.0,65647.0,15.77770732]
[1727422301105,1.23163814,65648.0,65647.0,15.77770732]
[1727422301334,1.04878264,65648.0,65647.0,16.03720732]
[1727422302774,1.04826828,65648.0,65647.0,16.03720732]
[1727422302988,1.07126828,65648.0,65647.0,16.03720732]
[1727422303206,1.09515648,65648.0,65647.0,16.03720732]
[1727422304735,1.25585648,65648.0,65647.0,16.03720732]
[1727422304952,0.9667282,65648.0,65647.0,16.17870214]
[1727422305169,0.5097462,65648.0,65647.0,16.17870214]
[1727422305423,0.3097462,65648.0,65647.0,16.17870214]
[1727422305656,0.285858,65648.0,65647.0,16.17870214]
[1727422305879,0.257858,65648.0,65647.0,16.17870214]
[1727422306141,0.028,65648.0,65647.0,16.19130214]
[1727422306378,0.000867,65653.0,65647.0,15.91920214]
[1727422306637,0.000867,65653.0,65652.0,0.32359482]
[1727422306893,0.000867,65653.0,65648.0,0.304654]
[1727422306894,0.13337518,65652.0,65648.0,0.304654]
[1727422307166,0.13337518,65652.0,65650.0,0.152321]
[1727422307381,0.01,65656.0,65655.0,0.14149482]
[1727422307629,0.01,65656.0,65655.0,0.1556443]
[1727422307865,0.46693,65656.0,65655.0,0.1556443]
[1727422308105,0.46693,65656.0,65655.0,0.14149482]
[1727422309084,0.645239,65656.0,65655.0,0.14249482]
[1727422309353,0.631239,65656.0,65655.0,0.14249482]